Cogmind - Beta 15 @@@ ROGUE MODE // 2025.06.07 @ 18:30:02 Player: Nueadkie Result: Destroyed by Y-45 Defender with Heavy Assault Rifle Performance ------------- Evolutions (2) 1000 Regions Visited (5) 1000 Robots Destroyed (84) 420 Value Destroyed (1968) 1968 Prototype IDs (27) 540 Alien Tech Used (0) 0 Bonus (429) 429 TOTAL SCORE: 5357 Bonus ------- Follower Combat Kills 129 Aligned with FarCom 300 Cogmind --------- Core Integrity 0/550 Matter 237/300 Energy 125/125 System Corruption 0% Temperature Cool (0) Movement Walking (480) Ox5 Location -8/Materials Parts ------- > --- POWER (1) -------- Light Ion Engine > --- PROPULSION (2) --- Titanium Leg > --- UTILITY (6) ------ Small Storage Unit Huge Storage Unit Machine Analyzer Signal Interpreter > --- WEAPON (2) ------- Improved Spread Laser Improved Spread Laser > --- INVENTORY (25) --- Light Angular Momentum Engine Aluminum Leg Aluminum Leg Flight Unit Flight Unit Flight Unit Flight Unit Surge Thruster Surge Thruster Surge Thruster Improved Heat Sink Superbattery (1500) Structural Scanner Advanced Visual Processing Unit Sensor Array Improved Signal Interpreter Seismic Detector Precision Beam Rifle Improved Spread Laser Plasma Cannon Rocket Launcher Datajack Heavy Hammer Heavy Hammer Heavy Mace Peak State ------------ > --- POWER ------------ Light Nuclear Core > --- PROPULSION ------- Carbon-fiber Leg Titanium Leg > --- UTILITY ---------- Improved Heat Sink Improved Heat Sink Huge Storage Unit Machine Analyzer Signal Interpreter Improved Light Armor Plating > --- WEAPON ----------- Arc Projector Plasma Cannon > --- INVENTORY -------- Light Angular Momentum Engine Aluminum Leg Aluminum Leg Aluminum Leg Flight Unit Flight Unit Flight Unit Flight Unit Flight Unit Improved Heat Sink Superbattery Structural Scanner Sensor Array Improved Signal Interpreter Seismic Detector Particle Gun Plasma Cannon Plasma Cannon Grenade Launcher Rocket Launcher Datajack Heavy Hammer Heavy Hammer [Rating: 36] Favorites ----------- Power Ion Engine Engine Ion Engine Power Core Light Nuclear Core Propulsion Light Treads Treads Light Treads Leg Aluminum Leg Wheel Wheel Utility Huge Storage Unit Device Seismic Detector Storage Huge Storage Unit Processor Signal Interpreter Protection Improved Light Armor Plating Weapon Improved Light Cannon Energy Gun Medium Laser Energy Cannon Plasma Cannon Ballistic Gun Assault Rifle Ballistic Cannon Improved Light Cannon Launcher Grenade Launcher Impact Weapon Heavy Hammer Build | -11 -10 -10 -10 -9 -8 ------- Run | Yrd Mat Min Exi Min Mat Slots Evolved 4 | . . . . . 4 Power . | . . . . . . Propulsion . | . . . . . . Utility 4 | . . . . . 4 Weapon . | . . . . . . Parts Attached 60 | 7 6 4 1 8 34 Power 7 | 1 . 1 . 1 4 Engine 4 | 1 . 1 . 1 1 Core 3 | . . . . . 3 Reactor . | . . . . . . Propulsion 14 | 2 1 2 . 2 7 Treads 4 | 2 1 1 . . . Leg 9 | . . . . 2 7 Wheel 1 | . . 1 . . . Hover . | . . . . . . Flight . | . . . . . . Utility 15 | 2 2 1 1 . 9 Device 7 | 1 . 1 . . 5 Storage 4 | 1 2 . . . 1 Processor 2 | . . . 1 . 1 Hackware . | . . . . . . Protection 2 | . . . . . 2 Artifact . | . . . . . . Weapon 24 | 2 3 . . 5 14 Energy Gun 11 | 1 . . . . 10 Energy Cannon 6 | . . . . 2 4 Ballistic Gun 1 | 1 . . . . . Ballistic Cannon 2 | . 1 . . 1 . Launcher 2 | . 1 . . 1 . Special Weapon . | . . . . . . Impact Weapon 2 | . 1 . . 1 . Slashing Weapon . | . . . . . . Piercing Weapon . | . . . . . . Special Melee Weapon . | . . . . . . Unidentified Prototypes 2 | . . . . . 2 Parts Lost 18 | . . 2 . 1 15 Power 5 | . . . . 1 4 Propulsion 4 | . . 2 . . 2 Utility 4 | . . . . . 4 Weapon 5 | . . . . . 5 Highest Loss Streak 6 | . . 2 . 1 6 To Critical Strikes . | . . . . . . Average Backups 21 | 2 14 24 24 24 23 Power 2 | . 1 3 4 3 1 Propulsion 5 | . 3 6 6 5 7 Utility 5 | . 3 6 6 7 6 Weapon 6 | . 3 7 7 7 6 Tool/Special . | . . . . . . Unused Backups 28 | . 3 . . 3 22 Power 3 | . . . . 2 1 Propulsion 10 | . 1 . . . 9 Utility 9 | . . . . 1 8 Weapon 5 | . 2 . . . 3 Tool/Special 1 | . . . . . 1 Average Slot Usage (%) 95 | . 100 99 100 97 82 Engine 11 | . 14 14 14 11 4 Core 1 | . . . . . 4 Treads 17 | . 28 22 14 25 . Leg 3 | . . . . . 14 Wheel 3 | . . 5 14 2 . Device 9 | . 14 14 9 . 9 Storage 13 | . 14 14 14 14 11 Processor 7 | . . . 4 14 16 Protection 1 | . . . . . 4 Energy Gun 4 | . 7 . . . 8 Energy Cannon 5 | . . . . 22 6 Ballistic Gun 1 | . 4 . . 1 . Ballistic Cannon 7 | . 10 14 14 1 . Launcher 5 | . 3 14 14 1 1 Peak Build Rating 36 | 7 11 11 12 18 36 Average Rating 15 | 5 9 10 11 16 26 On Entrance 9 | . 7 11 11 12 16 Naked Turns . | . . . . . . Heaviest Build 105 | 15 93 93 91 99 105 Greatest Support 40 | 40 40 40 10 40 32 Greatest Overweight (x) 30 | . 2 9 9 9 30 Average Overweight (x) 4 | . 1 5 8 4 4 Largest Inventory Capacity 25 | 8 25 25 25 25 25 Average Capacity 23 | 7 21 25 25 25 25 Most Carried 25 | 5 22 25 25 25 25 Average Carried 21 | 3 14 24 24 24 23 Final Capacity 25 | 8 25 25 25 25 25 Final Carried 25 | 5 22 24 25 25 25 Class Distribution -------------------- 80% | Mutant 19% | Scavenger-Mutant Dominant Class ---------------- Mutant | -10/Materials Mutant | -10/Mines Scavenger-Mutant | -10/Exiles Mutant | -9/Mines Mutant | -8/Materials Resources | -11 -10 -10 -10 -9 -8 ----------- Run | Yrd Mat Min Exi Min Mat Matter Collected 1563 | 288 438 66 . 268 503 Remotely . | . . . . . . Salvage Created 2551 | 154 808 16 . 252 1321 Parts 151 | 9 54 4 . 19 65 Haulers Intercepted 3 | . 2 . . . 1 Recyclers Shooed 1 | . 1 . . . . Parts Field Recycled . | . . . . . . Retrieved Matter . | . . . . . . Parts Self-Destructed . | . . . . . . Prevented . | . . . . . . Kills | -11 -10 -10 -10 -9 -8 ------- Run | Yrd Mat Min Exi Min Mat Combat Hostiles Destroyed 50 | . 16 4 . 7 23 Guns 10 | . 6 . . . 4 Cannons 21 | . 10 1 . 3 7 AOE 18 | . . 3 . 4 11 Classes Destroyed 14 | 2 7 1 . 2 2 Worker 9 | . 4 . . . 5 Builder 5 | . 1 . . 1 3 Tunneler 3 | 3 . . . . . Hauler 3 | . 2 . . . 1 Recycler 6 | 1 2 . . . 3 Operator 2 | . 2 . . . . Watcher 6 | . 3 . . . 3 Swarmer 11 | . 3 2 . . 6 Cutter 3 | . . . . . 3 Grunt 28 | . 13 . . 5 10 Duelist 1 | . . . . 1 . Sentry 4 | . . . . 1 3 Demolisher 2 | . . 2 . . . Hunter 1 | . . . . . 1 Best Kill Streak 6 | 3 6 2 . 3 4 Combat Bots Only 4 | . 4 2 . 3 4 Max Kills in Single Turn 2 | 1 1 2 . 1 2 Gunslinging . | . . . . . . Exploded 2 | . . 2 . 1 2 Melee . | . . . . . . Uniques/NPCs Destroyed . | . . . . . . Combat | -11 -10 -10 -10 -9 -8 -------- Run | Yrd Mat Min Exi Min Mat Hostile Shots Fired 343 | . 82 14 . 31 216 Missed 107 | . 34 . . 7 66 Hits 236 | . 48 14 . 24 150 Melee 11 | . . . . 2 9 Projectile 225 | . 48 14 . 22 141 AOE 6 | . . 4 . . 2 Critical Strikes 11 | . . . . 2 9 Damage Taken 3382 | . 495 250 . 335 2302 Core 715 | . 67 62 . 33 553 Absorbed by Shields . | . . . . . . Regen/Repaired (Parts) 83 | . 68 . . . 15 Core Remaining (%) 67 | 100 . . . 35 . Volleys Fired 208 | 6 93 13 . 22 74 Largest 2 | 2 2 2 . 2 2 Hottest 160 | 70 83 63 . 149 160 Shots Fired 350 | 12 163 14 . 40 121 Gun 166 | 12 104 . . . 50 Cannon 163 | . 59 10 . 33 61 Launcher 21 | . . 4 . 7 10 Special . | . . . . . . Kinetic 118 | 6 97 10 . 5 . Thermal 161 | 6 66 . . 17 72 Explosive 21 | . . 4 . 7 10 Electromagnetic 50 | . . . . 11 39 Robot Hit Streak 33 | 5 17 4 . 9 33 Robot Miss Streak 9 | 1 9 2 . 2 4 Penetration Max . | . . . . . . Secondary Targets . | . . . . . . Shots Hit Robots 221 | 6 91 9 . 24 91 Core Hits 120 | 5 41 5 . 11 58 Critical Kills 3 | . 1 . . . 2 Critical Parts Destroyed 1 | . . . . . 1 Critical Strikes 12 | 1 8 . . . 3 Burn 6 | 1 5 . . . . Meltdown 2 | . . . . . 2 Blast 2 | . 2 . . . . Smash 2 | . 1 . . . 1 Melee Attacks 23 | . 13 . . . 10 Impact 23 | . 13 . . . 10 Slashing . | . . . . . . Piercing . | . . . . . . Sneak Attacks 1 | . 1 . . . . Combat Hostiles . | . . . . . . Follow-up Attacks . | . . . . . . Damage Inflicted 5659 | 106 1538 269 . 932 2814 Guns 1410 | 106 734 . . . 570 Cannons 2496 | . 728 122 . 495 1151 Explosions 1585 | . . 147 . 437 1001 Melee 166 | . 74 . . . 92 Ramming 2 | . 2 . . . . Kinetic 1173 | 44 944 122 . 63 . Thermal 2416 | 62 518 . . 278 1558 Explosive 1270 | . . 147 . 363 760 Electromagnetic 632 | . . . . 228 404 Impact 166 | . 74 . . . 92 Slashing . | . . . . . . Piercing . | . . . . . . Highest Corruption . | . . . . . . Average Corruption . | . . . . . . Corruption Purged . | . . . . . . Corruption Blocked . | . . . . . . Overload Shots . | . . . . . . Overflow Damage 134 | . . 14 . 13 107 Projectiles 30 | . . 14 . . 16 Explosions 69 | . . . . 13 56 Melee 35 | . . . . . 35 Knockbacks 12 | . 8 2 . 2 . Impact . | . . . . . . Kinetic 12 | . 8 2 . 2 . Secondary . | . . . . . . Self-Inflicted Damage 185 | . . 23 . . 162 Shots 6 | . . 1 . . 5 Rammed 1 | . 1 . . . . Targets Rammed 2 | . 2 . . . . Kicked . | . . . . . . Crushed 1 | . 1 . . . . Highest Temperature 474 | 18 208 3 . 474 415 Average Temperature 110 | 9 60 2 . 164 145 Received Heat Transfer 996 | . 204 . . 144 648 Effects 11 | . 1 . . 4 6 Shutdowns 2 | . . . . . 2 Energy Bleed 1 | . . . . 1 . Interference 4 | . 1 . . 2 1 Short Circuit 4 | . . . . 1 3 Siege Activations . | . . . . . . Martial Activations . | . . . . . . Shielding Activations . | . . . . . . Robots Disrupted 2 | . . . . . 2 Combat Hostiles . | . . . . . . Robots Corrupted . | . . . . . . Combat Hostiles . | . . . . . . Parts Fried 1 | . . . . . 1 Impact Corruptions 1 | . . . . . 1 Robots Melted 2 | . . . . . 2 Combat Hostiles 1 | . . . . . 1 Parts Melted 16 | 1 . . . . 15 Heat Transferred 5379 | 259 1887 . . 500 2733 Parts Sabotaged . | . . . . . . Parts Stolen . | . . . . . . Parts Stripped . | . . . . . . Power Chain Reactions 3 | . . . . 1 2 Alert | -11 -10 -10 -10 -9 -8 ------- Run | Yrd Mat Min Exi Min Mat Maximum Alert Level 1 | . 1 . . . 1 Low Security (%) 75 | 100 42 100 . 100 82 Level 1 24 | . 57 . . . 17 Level 2 . | . . . . . . Level 3 . | . . . . . . Level 4 . | . . . . . . Level 5 . | . . . . . . High Security . | . . . . . . Max Security . | . . . . . . Peak Influence 299 | 10 299 147 . 90 237 Initial 93 | . . 93 . . 26 Average 84 | 1 151 28 . 14 88 Influence Increases 1994 | 20 673 158 . 347 796 Destroy 0b10 Robot/C 1140 | . 320 80 . 220 520 Destroy 0b10 Robot/NC 170 | 20 70 . . 5 75 Destroy Leader 228 | . 80 10 . 30 108 Allied During Kill 28 | . . . . 19 9 Successful Hack 7 | . 7 . . . . Disable Machine 45 | . 30 . . 15 . Destroy Structure 166 | . 16 23 . 43 84 Partial Spotted 15 | . . . . 15 . Lose Combat Pursuer 195 | . 150 45 . . . Influence Decreases 1833 | 20 433 398 . 279 703 Entered New Map 189 | . . 147 . . 42 Time Decay 1472 | 20 433 244 . 269 506 Lost Part 132 | . . 7 . 10 115 Lost Ally 40 | . . . . . 40 Squads Dispatched 9 | . 5 . . 1 3 Investigation 4 | . 2 . . 1 1 Extermination . | . . . . . . Reinforcement 5 | . 3 . . . 2 Assault . | . . . . . . Garrison . | . . . . . . Intercept . | . . . . . . Searches Triggered . | . . . . . . Construction Impeded 1 | . . . . . 1 Haulers Reinforced . | . . . . . . Active Scanning Responses . | . . . . . . Cargo Convoy Interrupts . | . . . . . . Stealth | -11 -10 -10 -10 -9 -8 --------- Run | Yrd Mat Min Exi Min Mat Distress Signals 9 | . 2 . . . 7 Communications Jammed . | . . . . . . Distress Signals . | . . . . . . Times Spotted 90 | . 35 4 . 11 40 Peak Tracking Total 6 | . 5 2 . 3 6 Tactical Retreats 13 | . 10 3 . . . Traps | -11 -10 -10 -10 -9 -8 ------- Run | Yrd Mat Min Exi Min Mat Traps Triggered 1 | . 1 . . . . Indirectly . | . . . . . . Trap Hack Attempts . | . . . . . . Triggered . | . . . . . . Disarmed . | . . . . . . Reprogrammed . | . . . . . . Reused . | . . . . . . Traps Extracted . | . . . . . . Installed . | . . . . . . Triggered . | . . . . . . Machines | -11 -10 -10 -10 -9 -8 ---------- Run | Yrd Mat Min Exi Min Mat Machines Disabled 3 | . 2 . . 1 . Max in Single Turn 1 | . 1 . . 1 . Machines Repaired . | . . . . . . Machines Dismantled . | . . . . . . Machines Sabotaged . | . . . . . . Overloaded Fab Kills . | . . . . . . Hacking | -11 -10 -10 -10 -9 -8 --------- Run | Yrd Mat Min Exi Min Mat Machines Accessed 14 | . 5 . 4 1 4 Terminals 4 | . 3 . . . 1 Fabricators . | . . . . . . Repair Stations 2 | . 1 . . . 1 Recycling Units 2 | . 1 . . . 1 Scanalyzers 1 | . . . . . 1 Garrison Access . | . . . . . . Total Hacks 48 | . 11 . 27 1 9 Successful 37 | . 4 . 27 1 5 Failed 11 | . 7 . . . 4 Catastrophic 5 | . 4 . . . 1 Database Lockouts . | . . . . . . Manual 5 | . 4 . 1 . . Terminals 7 | . 6 . . . 1 Fabricators . | . . . . . . Repair Stations 8 | . 4 . . . 4 Recycling Units 2 | . 1 . . . 1 Scanalyzers 3 | . . . . . 3 Garrison Access . | . . . . . . Terminal Hacks 29 | . 1 . 27 1 . Record 26 | . . . 26 . . Prototype ID Bank 1 | . 1 . . . . Open Door 1 | . . . . 1 . Proto ID Catalog 1 | . . . 1 . . Fabricator Hacks . | . . . . . . Repair Station Hacks 5 | . 3 . . . 2 Scan Component 3 | . 2 . . . 1 Repair 2 | . 1 . . . 1 Recycling Unit Hacks 1 | . . . . . 1 Report Inventory 1 | . . . . . 1 Scanalyzer 2 | . . . . . 2 Insert Component 2 | . . . . . 2 Garrison Access Hacks . | . . . . . . Unauthorized Hacks . | . . . . . . Terminals . | . . . . . . Fabricators . | . . . . . . Repair Stations . | . . . . . . Recycling Units . | . . . . . . Scanalyzers . | . . . . . . Garrison Access . | . . . . . . Data Cores Recovered . | . . . . . . Used . | . . . . . . Hacking Detections 8 | . 5 . . . 3 Full Trace Events 2 | . 1 . . . 1 Feedback Events . | . . . . . . Feedback Blocked . | . . . . . . Robot Schematics Acquired . | . . . . . . Robots Built . | . . . . . . Authchips . | . . . . . . Time . | . . . . . . Total Robot Build Rating . | . . . . . . Part Schematics Acquired . | . . . . . . Parts Built . | . . . . . . Authchips . | . . . . . . Time . | . . . . . . Total Part Build Rating . | . . . . . . Parts Repaired 2 | . 1 . . . 1 Time 52 | . 26 . . . 26 Parts Recycled . | . . . . . . Recycled Matter . | . . . . . . Retrieved Matter . | . . . . . . Retrieved Components . | . . . . . . Parts Scanalyzed 1 | . . . . . 1 Part Schematics Acquired . | . . . . . . Parts Damaged . | . . . . . . Bothacking | -11 -10 -10 -10 -9 -8 ------------ Run | Yrd Mat Min Exi Min Mat Used RIF Installer . | . . . . . . Robots Hacked . | . . . . . . Non-combat . | . . . . . . Combat . | . . . . . . Robot Hacks Applied . | . . . . . . Relay Couplers Released . | . . . . . . Fabnet Peak Effective % . | . . . . . . Robots Rewired . | . . . . . . Allies Hacked . | . . . . . . Hacks Repelled . | . . . . . . Allies | -11 -10 -10 -10 -9 -8 -------- Run | Yrd Mat Min Exi Min Mat Total Allies 3 | . . . . 3 . Largest Group 3 | . . . . 3 2 Highest-Rated Group 40 | . . . . 40 24 Highest-Rated Ally 16 | . . . . 16 16 Total Orders . | . . . . . . Ally Attacks 40 | . . . . 27 13 Total Damage 385 | . . . . 275 110 Kills 7 | . . . . 4 3 Allies Corrupted . | . . . . . . Allies Melted . | . . . . . . Intel | -11 -10 -10 -10 -9 -8 ------- Run | Yrd Mat Min Exi Min Mat Active Infowar (turns) 7509 | 61 2975 1095 1098 . 2280 Structural 2182 | . . 1039 1098 . 45 Seismic 3092 | 61 2975 56 . . . Machine Analysis 2235 | . . . . . 2235 Robot Analysis Total . | . . . . . . Derelict Logs Recovered 2 | . . . . 2 . Drone Launches . | . . . . . . Drone Recoveries . | . . . . . . Exploration | -11 -10 -10 -10 -9 -8 ------------- Run | Yrd Mat Min Exi Min Mat Turns Passed 10229 | 132 2975 1095 1559 1956 2512 Spaces Moved 3067 | 65 871 393 741 485 512 Core 11 | 4 . . . . 7 Treads 1467 | 61 871 205 . 330 . Legs 515 | . . . . 10 505 Wheels 1074 | . . 188 741 145 . Hover . | . . . . . . Flight . | . . . . . . Fastest Speed 50 | 50 160 215 200 200 265 Average Speed 291 | 153 280 269 210 363 395 Slowest Speed 1550 | 160 320 320 215 750 1550 Overloaded Moves . | . . . . . . Propulsion Burnouts . | . . . . . . Robots Hopped . | . . . . . . Potential Cave-ins 2 | . . . . 2 . Cave-ins Triggered . | . . . . . . Exploration Rate (%) 62 | 5 91 82 92 74 33 Regions Visited 5 Branch Regions 3 Pre-discovered Areas . | . . . . . . Known Exits Taken 2 | . . . 1 1 . Unknown Exits Taken 3 | 1 1 1 . . . Scrap Searched 3 | . . 1 . 2 . Spaces Dug 10 | . 10 . . . . Terrain Destroyed 182 | . 13 24 . 58 87 Melee 10 | . 10 . . . . Projectile 27 | . 3 1 . 9 14 AOE 145 | . . 23 . 49 73 Terrain Rammed . | . . . . . . Walls Destroyed . | . . . . . . Machines Disabled . | . . . . . . Actions | -11 -10 -10 -10 -9 -8 --------- Run | Yrd Mat Min Exi Min Mat Total 3949 | 82 1215 413 742 643 854 Wait 474 | . 202 . . 102 170 Move 3062 | 64 870 392 740 484 512 Hop . | . . . . . . Pick Up 56 | 5 21 3 1 9 17 Fast Attach 27 | 7 . . . 4 16 Attach 19 | . 1 2 . 2 14 Detach 4 | . . . . 2 2 Swap 39 | . 8 3 1 7 20 Drop 35 | . 5 . . 11 19 Fire 208 | 6 93 13 . 22 74 Melee 23 | . 13 . . . 10 Ram . | . . . . . . Kick . | . . . . . . Crush 2 | . 2 . . . . Escape Stasis . | . . . . . . Rewire . | . . . . . . Trap . | . . . . . . Miscellaneous . | . . . . . . Route ------- -11/Scrapyard -10/Materials (discovered 4 exits: [*Mat x3] / [*Min]) -10/Mines (discovered 3 exits: [*Mat] / *Exi / [*Sub]) -10/Exiles (discovered 2 exits: *Min x2) -9/Mines (discovered 2 exits: *Mat x2) -8/Materials History --------- Turn | Location | Event 4 | -11/Scrapyard | Discovered new exit (range 15) 133 | -11/Scrapyard | Entered Materials 178 | -10/Materials | Discovered new exit (range 11) 305 | -10/Materials | Build established: Mutant 502 | -10/Materials | Discovered new exit (range 16) 794 | -10/Materials | Discovered new exit (range 8) 1113 | -10/Materials | Repaired Lgt. Treads 1249 | -10/Materials | Discovered new exit (range 10) 3108 | -10/Materials | Entered Mines 3121 | -10/Mines | Met a Derelict bent on vengeance 3314 | -10/Mines | Assembled infested the area 3450 | -10/Mines | Discovered new exit (range 9) 3779 | -10/Mines | Core integrity fell below 50% 4086 | -10/Mines | Build established: Scavenger-Mutant 4139 | -10/Mines | Discovered new exit (range 10) 4192 | -10/Mines | Deemed a non-threat by the Exiles lab entrance 4192 | -10/Mines | Discovered new exit (range 6) 4203 | -10/Mines | Entered Exiles 4234 | -10/Exiles | Discovered new exit (range 15) 4264 | -10/Exiles | Met 8R-AWN 4305 | -10/Exiles | Met EX-HEX 4446 | -10/Exiles | Met EX-DEC 4497 | -10/Exiles | Visited The Gauntlet 4864 | -10/Exiles | Met EX-BIN 4913 | -10/Exiles | Aligned with FarCom system 4915 | -10/Exiles | Given EX-Vault access code 4988 | -10/Exiles | Opened EX-Vault 5003 | -10/Exiles | Found Superbattery 5067 | -10/Exiles | Warned to stay clear of 0b10 Research branches 5217 | -10/Exiles | Discovered new exit (range 14) 5350 | -10/Exiles | Identified exit to Mines 5588 | -10/Exiles | Build established: Mutant 5762 | -10/Exiles | Left Exiles lab with Superbattery 5762 | -10/Exiles | Entered Mines 5769 | -9/Mines | Received a Rocket Launcher from a helpful Derelict 5966 | -9/Mines | Discovered new exit (range 7) 5976 | -9/Mines | Identified exit to Materials 6016 | -9/Mines | Assisted by bots powering up and referring to "LRC-V3" 6072 | -9/Mines | Learned Materials trap positions 6075 | -9/Mines | Met a Derelict shopkeep closing up shop 7718 | -9/Mines | Entered Materials 7718 | -8/Materials | Accompanied by 2 allies 7718 | -8/Materials | Evolved 4 slots: Utility x4 7719 | -8/Materials | Loaded intel: 19 trap records 7928 | -8/Materials | Repaired Structural Scanner 8163 | -8/Materials | Build established: Scavenger-Mutant 8399 | -8/Materials | Lost 6 parts (1p1n2u2w) 8629 | -8/Materials | Build established: Mutant 8677 | -8/Materials | Lost 3 parts (1p1u1w) 9322 | -8/Materials | Core integrity fell below 50% 9354 | -8/Materials | Core integrity fell below 20% 10230 | -8/Materials | Destroyed by Y-45 Defender with Heavy Assault Rifle Last Messages --------------- 09684_ U-05 Engineer builds a Wall. 09685_ U-05 Engineer lays Concrete. 09687_ Extracted 100 matter. 09689_ U-05 Engineer lays Concrete. 09696_ Acquired 9 matter. 09698_ U-05 Engineer lays Concrete. 09701_ U-05 Engineer builds a Wall. 09773_ Dropped Plasma Cannon. 09774_ Acquired Prototype Energy Gun. 09774_ Identified Imp. Spread Laser. 09775_ Dropped Particle Gun. 09776_ Acquired Particle Gun. 09782_ Dropped Particle Gun. 09782_ Acquired Imp. Spread Laser. 09784_ Dropped Plasma Cannon. 09785_ Acquired Plasma Cannon. 09791_ Acquired Imp. Spread Laser. 09975_ Acquired Prototype Energy Gun. 09975_ Identified Prc. Beam Rifle. 10002_ Acquired Hvy. Mace. Map ----- +----------------------------------------------------+ | ??????????????????????????????????????????????? | | ??????????????????????????????????????????????? | | ????????########??????????????????????????????? | | ????????#!! !!#??????????????????????????????? | | ????????#!![[!!#??????????????????????????????? | | ????????# ]] ########???????????????????????? | | ????????### ## #???????????????????????? | | ??????????# # #???????????????????????? | | ??????????# # #???????????????????????? | | ??????????### # ##########??????????????? | | ????????????# # # #??????????????? | | ????????????# + # #??????????????? | | ????????????# # # #??????????????? | | ?????????#### #####+# #??????????????? | | ????????## #### # #?"""?"""??????? | | ????????#! ]]] # #?"""?"""??????? | | ????????#! ]] # #?"""?"""??????? | | ????????#! ]] !* # #?"""?"""??????? | | ????????#! ! *] "# #??????????????? | | ????????##! ####+#######+###????????? | | ????????#####! #????????? | | ?######## = == #????????? | | ?# # ###### ! ####+##### #????????? | | ?#""" # ###+##### #! # #?# #????????? | | ?#""" # # ! # # # ### +????????? | | ?#""" + + ] ###@ # """ + #????????? | | ?# # # [ [### # """ ### #????????? | | ?# # ########### # """ #?# ########## | | ?########+#######????# # #?# ## ! """ | | ???# #????# #####/##?# ## "Y" | | ???# " """"" #????# ##????#??# ## | | ???# """"""""" #????# ##???????# ## [ ! | | ???# """ """ #????# #????w???# ## ! ! | | ???# #????# #????????# ## !!! | | ???##############????# #????????# ## | | ?????????????????????# ??????# ## | | ?????????????????????# ### #########+ | | ?????????????????????# | | ?????????????????????? ################## | | ?????????????????????? #??????????????### | | ?????????????????????? ?????????????????##### | | ?????????????????????????????????????????????## | | ????????????????????????Y?????????????????????# | | ??????????????????????????????????????????????# | | ??????????????????????????????????????????????# | | ??????????????????????????????????????????????# | | ??????????????????????????????????????????????# | | ??????????????????????????????????????????????# | | ????????????????????????????????????????????### | | ????????????????^???????????????????########### | +----------------------------------------------------+ Best States ------------- Heat Dissipation 59 Energy Generation 14 Energy Capacity 250 Matter Stores 300 Matter Capacity 300 Sight Range 16 Terrain Scan Density 10 Additional Mass Support 6 Armor Coverage 150 Evasion (%) 40 Recoil Reduction 2 Item Schematics ----------------- None Robot Schematics ------------------ None Fabricated ------------ Nothing Repaired ---------- Lgt. Treads | 51% | -10/Materials Structural Scanner | 25% | -8/Materials Alien Tech Used ----------------- None Achievements -------------- None Challenges ------------ None Game ------ Seed DisruptorRegenerativeBiocell Manual? 0 Play Time 00:55:31 Cumulative 28.2 hours Start 2025.06.07 @ 17:33:36 End 2025.06.07 @ 18:30:02 Sessions 1 Manual Loads 0 Difficulty Rogue Special Mode None Game No. 46 Rogue 46 Adventurer 0 Explorer 0 Win Type - Total 0 Types 0/0/0/0/0/0/0/0/0/0 Lore% 22 Gallery% 23 Achievement% 22 Wizard Run 0 Options --------- Layout 0 ASCII 0 Keyboard 0 Movement Vi Keybinds 0 Fullscreen 2 Font 36/Smallcaps Map View 76x50 Zoom Use 0% Tactical HUD 1 Map Filters NONE Filters NONE Steam 1 RUN: d610b35c-2bd7-4846-864b-340aaef464c8